[Event "Titled Tuesday Blitz October 5 2021"]
[White "Oparin, Grigoriy"]
[Black "Siva Mahadevan"]
[WhiteFideId "24125890"]
[BlackFideId "25043153"]
[WhiteElo "2604"]
[BlackElo "2203"]
[Result "1-0"]
[Round "06"]
[TimeControl "180+1"]
[Date "2021.10.05"]
[WhiteClock "0:02:25"]
[BlackClock "0:02:03"]

1. d4 {[%clk 0:03:00]}  Nf6 {[%clk 0:02:59]} 2. c4 {[%clk 0:03:01]}  g6 {[%clk 0:03:00]} 3. Nf3 {[%clk 0:03:02]}  Bg7 {[%clk 0:03:00]} 4. g3 {[%clk 0:03:03]}  O-O {[%clk 0:03:01]} 5. Bg2 {[%clk 0:03:03]}  d6 {[%clk 0:03:02]} 6. O-O {[%clk 0:03:04]}  Nbd7 {[%clk 0:03:03]} 7. Nc3 {[%clk 0:03:04]}  e5 {[%clk 0:03:03]} 8. e4 {[%clk 0:03:05]}  c6 {[%clk 0:03:04]} 9. Qc2 {[%clk 0:03:05]}  Re8 {[%clk 0:03:03]} 10. Rd1 {[%clk 0:03:06]}  exd4 {[%clk 0:03:02]} 11. Nxd4 {[%clk 0:03:06]}  Ng4 {[%clk 0:03:02]} 12. h3 {[%clk 0:03:01]}  Nge5 {[%clk 0:02:50]} 13. b3 {[%clk 0:03:02]}  Nc5 {[%clk 0:02:50]} 14. f4 {[%clk 0:02:57]}  Ned7 {[%clk 0:02:41]} 15. Be3 {[%clk 0:02:56]}  a5 {[%clk 0:02:41]} 16. Bf2 {[%clk 0:02:55]}  Qc7 {[%clk 0:02:40]} 17. Rd2 {[%clk 0:02:55]}  h5 {[%clk 0:02:34]} 18. Re1 {[%clk 0:02:55]}  Nf6 {[%clk 0:02:28]} 19. Ndb5 {[%clk 0:02:45]}  cxb5 {[%clk 0:02:24]} 20. Nxb5 {[%clk 0:02:46]}  Qe7 {[%clk 0:02:21]} 21. Nxd6 {[%clk 0:02:45]}  Ne6 {[%clk 0:02:19]} 22. f5 {[%clk 0:02:35]}  Ng5 {[%clk 0:02:09]} 23. e5 {[%clk 0:02:35]}  Nd7 {[%clk 0:02:03]} 24. f6 {[%clk 0:02:31]}  Nxf6 {[%clk 0:02:03]} 25. exf6 {[%clk 0:02:24]}  Qxe1+ {[%clk 0:02:03]} 26. Bxe1 {[%clk 0:02:25]}  Rxe1+ {[%clk 0:02:03]} 27. Kf2 {[%clk 0:02:25]} 1-0


[Site "https://www.chess.com"]

[Event "Titled Tuesday Blitz October 5 2021"]
[White "Pavlidis, Anastasios"]
[Black "Shuvalov, Evgenij"]
[WhiteFideId "4208404"]
[BlackFideId "4187237"]
[WhiteElo "2136"]
[BlackElo "2129"]
[Result "0-1"]
[Round "06"]
[TimeControl "180+1"]
[Date "2021.10.05"]
[WhiteClock "0:00:41"]
[BlackClock "0:00:28"]

1. e4 {[%clk 0:03:00]}  e6 {[%clk 0:02:59]} 2. d4 {[%clk 0:02:59]}  d5 {[%clk 0:02:59]} 3. Nc3 {[%clk 0:03:00]}  Bb4 {[%clk 0:02:59]} 4. e5 {[%clk 0:03:00]}  c5 {[%clk 0:02:59]} 5. a3 {[%clk 0:03:00]}  Bxc3+ {[%clk 0:02:59]} 6. bxc3 {[%clk 0:03:01]}  Ne7 {[%clk 0:03:00]} 7. Qg4 {[%clk 0:03:00]}  cxd4 {[%clk 0:02:59]} 8. Qxg7 {[%clk 0:02:59]}  Rg8 {[%clk 0:02:59]} 9. Qxh7 {[%clk 0:03:00]}  Qc7 {[%clk 0:02:58]} 10. Ne2 {[%clk 0:02:58]}  Nbc6 {[%clk 0:02:58]} 11. f4 {[%clk 0:02:56]}  dxc3 {[%clk 0:02:56]} 12. Qd3 {[%clk 0:02:55]}  d4 {[%clk 0:02:56]} 13. g3 {[%clk 0:02:55]}  b6 {[%clk 0:02:47]} 14. Bg2 {[%clk 0:02:55]}  Bb7 {[%clk 0:02:47]} 15. Rg1 {[%clk 0:02:51]}  O-O-O {[%clk 0:02:47]} 16. Rb1 {[%clk 0:02:42]}  Nf5 {[%clk 0:02:38]} 17. a4 {[%clk 0:02:40]}  Na5 {[%clk 0:02:34]} 18. Bxb7+ {[%clk 0:02:38]}  Qxb7 {[%clk 0:02:35]} 19. Ba3 {[%clk 0:02:24]}  Ne3 {[%clk 0:02:28]} 20. Bd6 {[%clk 0:02:20]}  Nc6 {[%clk 0:01:53]} 21. Nxc3 {[%clk 0:02:01]}  dxc3 {[%clk 0:01:34]} 22. Qxe3 {[%clk 0:02:01]}  Qa6 {[%clk 0:01:24]} 23. Qxc3 {[%clk 0:02:00]}  Kb7 {[%clk 0:01:25]} 24. Ra1 {[%clk 0:01:47]}  Rc8 {[%clk 0:01:24]} 25. Qd3 {[%clk 0:01:36]}  Qa5+ {[%clk 0:01:22]} 26. Kf2 {[%clk 0:01:35]}  Nb4 {[%clk 0:00:50]} 27. Qe4+ {[%clk 0:01:35]}  Nd5 {[%clk 0:00:51]} 28. Rgd1 {[%clk 0:01:35]}  Rc3 {[%clk 0:00:42]} 29. Rab1 {[%clk 0:00:58]}  Rgc8 {[%clk 0:00:40]} 30. Rd2 {[%clk 0:00:59]}  R3c4 {[%clk 0:00:33]} 31. Qh7 {[%clk 0:00:51]}  Qxd2+ {[%clk 0:00:32]} 32. Kf3 {[%clk 0:00:47]}  Rxc2 {[%clk 0:00:27]} 33. Qxf7+ {[%clk 0:00:41]}  R8c7 {[%clk 0:00:28]} 0-1


[Site "https://www.chess.com"]

[Event "Titled Tuesday Blitz October 5 2021"]
[White "Pichot, Alan"]
[Black "Boyer, Mahel"]
[WhiteFideId "110973"]
[BlackFideId "45102422"]
[WhiteElo "2600"]
[BlackElo "2328"]
[Result "1-0"]
[Round "06"]
[TimeControl "180+1"]
[Date "2021.10.05"]
[WhiteClock "0:00:54"]
[BlackClock "0:00:03"]

1. e4 {[%clk 0:03:00]}  Nc6 {[%clk 0:03:00]} 2. Nf3 {[%clk 0:02:59]}  d5 {[%clk 0:03:00]} 3. e5 {[%clk 0:02:58]}  Bg4 {[%clk 0:03:00]} 4. Bb5 {[%clk 0:02:56]}  e6 {[%clk 0:03:00]} 5. h3 {[%clk 0:02:55]}  Bxf3 {[%clk 0:03:00]} 6. Qxf3 {[%clk 0:02:56]}  Ne7 {[%clk 0:03:00]} 7. d4 {[%clk 0:02:54]}  a6 {[%clk 0:03:01]} 8. Bxc6+ {[%clk 0:02:54]}  Nxc6 {[%clk 0:03:02]} 9. c3 {[%clk 0:02:54]}  f6 {[%clk 0:03:02]} 10. Qg4 {[%clk 0:02:49]}  fxe5 {[%clk 0:02:36]} 11. Qxe6+ {[%clk 0:02:48]}  Qe7 {[%clk 0:02:36]} 12. Qxe7+ {[%clk 0:02:41]}  Bxe7 {[%clk 0:02:37]} 13. dxe5 {[%clk 0:02:26]}  Nxe5 {[%clk 0:02:38]} 14. O-O {[%clk 0:02:22]}  O-O {[%clk 0:02:37]} 15. Nd2 {[%clk 0:02:09]}  Bc5 {[%clk 0:02:28]} 16. Nb3 {[%clk 0:02:08]}  Bb6 {[%clk 0:02:28]} 17. Nd4 {[%clk 0:02:04]}  Rae8 {[%clk 0:02:23]} 18. Rd1 {[%clk 0:02:03]}  Nc4 {[%clk 0:02:20]} 19. b3 {[%clk 0:02:01]}  Nd6 {[%clk 0:02:21]} 20. Ba3 {[%clk 0:01:58]}  Ne4 {[%clk 0:01:35]} 21. Bxf8 {[%clk 0:01:54]}  Nxc3 {[%clk 0:01:36]} 22. Re1 {[%clk 0:01:31]}  Rxf8 {[%clk 0:01:26]} 23. Nf3 {[%clk 0:01:31]}  d4 {[%clk 0:01:12]} 24. Ne5 {[%clk 0:01:31]}  h6 {[%clk 0:00:07]} 25. Nd3 {[%clk 0:01:28]}  Rf7 {[%clk 0:00:08]} 26. a4 {[%clk 0:01:23]}  c5 {[%clk 0:00:01]} 27. Re8+ {[%clk 0:01:20]}  Rf8 {[%clk 0:00:02]} 28. Re6 {[%clk 0:01:18]}  Rf6 {[%clk 0:00:01]} 29. Rae1 {[%clk 0:01:16]}  Kf7 {[%clk 0:00:01]} 30. Re7+ {[%clk 0:01:15]}  Kg6 {[%clk 0:00:02]} 31. R1e6 {[%clk 0:01:14]}  Nd5 {[%clk 0:00:01]} 32. Rxf6+ {[%clk 0:01:14]}  gxf6 {[%clk 0:00:02]} 33. Rxb7 {[%clk 0:01:14]}  Kf5 {[%clk 0:00:03]} 34. f3 {[%clk 0:01:11]}  Ba5 {[%clk 0:00:01]} 35. Nxc5 {[%clk 0:01:08]}  Nf4 {[%clk 0:00:02]} 36. g3 {[%clk 0:01:06]}  Nxh3+ {[%clk 0:00:01]} 37. Kg2 {[%clk 0:01:06]}  Ng5 {[%clk 0:00:02]} 38. b4 {[%clk 0:01:03]}  Bd8 {[%clk 0:00:01]} 39. Rd7 {[%clk 0:01:03]}  Bb6 {[%clk 0:00:01]} 40. Nd3 {[%clk 0:01:03]}  Ke6 {[%clk 0:00:01]} 41. Rb7 {[%clk 0:01:02]}  Bd8 {[%clk 0:00:01]} 42. b5 {[%clk 0:01:02]}  axb5 {[%clk 0:00:02]} 43. Rxb5 {[%clk 0:01:02]}  Nf7 {[%clk 0:00:02]} 44. a5 {[%clk 0:00:57]}  Nd6 {[%clk 0:00:02]} 45. Rh5 {[%clk 0:00:58]}  Nc4 {[%clk 0:00:02]} 46. a6 {[%clk 0:00:56]}  Bb6 {[%clk 0:00:03]} 47. Rb5 {[%clk 0:00:56]}  Kd6 {[%clk 0:00:03]} 48. Rb4 {[%clk 0:00:54]} 1-0


[Site "https://www.chess.com"]

[Event "Titled Tuesday Blitz October 5 2021"]
[White "Piesik, Piotr"]
[Black "Garcia Blanco, Omar"]
[WhiteFideId "1136194"]
[BlackFideId "2287153"]
[WhiteElo "2336"]
[BlackElo "2291"]
[Result "0-1"]
[Round "06"]
[TimeControl "180+1"]
[Date "2021.10.05"]
[WhiteClock "0:00:53"]
[BlackClock "0:00:58"]

1. Nf3 {[%clk 0:03:00]}  Nf6 {[%clk 0:02:59]} 2. g3 {[%clk 0:03:01]}  g6 {[%clk 0:02:59]} 3. Bg2 {[%clk 0:03:02]}  Bg7 {[%clk 0:02:58]} 4. O-O {[%clk 0:03:03]}  O-O {[%clk 0:02:59]} 5. d4 {[%clk 0:03:03]}  d6 {[%clk 0:03:00]} 6. Nbd2 {[%clk 0:03:02]}  d5 {[%clk 0:02:53]} 7. c4 {[%clk 0:02:59]}  c6 {[%clk 0:02:53]} 8. Qb3 {[%clk 0:02:57]}  Nbd7 {[%clk 0:02:46]} 9. cxd5 {[%clk 0:02:56]}  cxd5 {[%clk 0:02:46]} 10. Ne5 {[%clk 0:02:55]}  Nb6 {[%clk 0:02:45]} 11. Ndf3 {[%clk 0:02:55]}  Ne4 {[%clk 0:02:41]} 12. Bf4 {[%clk 0:02:53]}  Be6 {[%clk 0:02:40]} 13. Rfc1 {[%clk 0:02:48]}  Rc8 {[%clk 0:02:35]} 14. Qd1 {[%clk 0:02:43]}  f6 {[%clk 0:02:35]} 15. Nd3 {[%clk 0:02:41]}  Bf7 {[%clk 0:02:31]} 16. b3 {[%clk 0:02:36]}  Qd7 {[%clk 0:02:26]} 17. Rxc8 {[%clk 0:02:28]}  Rxc8 {[%clk 0:02:27]} 18. Rc1 {[%clk 0:02:28]}  h5 {[%clk 0:02:12]} 19. h4 {[%clk 0:02:27]}  Be6 {[%clk 0:02:09]} 20. Nc5 {[%clk 0:02:24]}  Nxc5 {[%clk 0:02:05]} 21. dxc5 {[%clk 0:02:24]}  Na8 {[%clk 0:02:05]} 22. Nd4 {[%clk 0:02:23]}  Bf7 {[%clk 0:02:05]} 23. Bd2 {[%clk 0:02:13]}  e5 {[%clk 0:02:04]} 24. Nf3 {[%clk 0:02:12]}  Nc7 {[%clk 0:01:59]} 25. b4 {[%clk 0:02:10]}  Ne6 {[%clk 0:01:58]} 26. e3 {[%clk 0:01:58]}  a5 {[%clk 0:01:57]} 27. a3 {[%clk 0:01:55]}  axb4 {[%clk 0:01:57]} 28. axb4 {[%clk 0:01:55]}  Ra8 {[%clk 0:01:56]} 29. Qb3 {[%clk 0:01:53]}  Nc7 {[%clk 0:01:54]} 30. Ne1 {[%clk 0:01:48]}  Nb5 {[%clk 0:01:51]} 31. Qb2 {[%clk 0:01:41]}  d4 {[%clk 0:01:48]} 32. exd4 {[%clk 0:01:40]}  Nxd4 {[%clk 0:01:48]} 33. Bc3 {[%clk 0:01:36]}  Ra2 {[%clk 0:01:46]} 34. Qb1 {[%clk 0:01:22]}  Ne2+ {[%clk 0:01:45]} 35. Kh2 {[%clk 0:01:22]}  Nxc1 {[%clk 0:01:45]} 36. Qxc1 {[%clk 0:01:23]}  Rxf2 {[%clk 0:01:43]} 37. Qe3 {[%clk 0:01:16]}  Ra2 {[%clk 0:01:42]} 38. Kh1 {[%clk 0:01:09]}  Bd5 {[%clk 0:01:40]} 39. Nf3 {[%clk 0:01:08]}  Bc6 {[%clk 0:01:06]} 40. Nd2 {[%clk 0:00:56]}  Bxg2+ {[%clk 0:01:02]} 41. Kxg2 {[%clk 0:00:56]}  Qd5+ {[%clk 0:01:02]} 42. Kf2 {[%clk 0:00:56]}  Kh7 {[%clk 0:00:59]} 43. b5 {[%clk 0:00:53]}  Bh6 {[%clk 0:00:58]} 0-1


[Site "https://www.chess.com"]

[Event "Titled Tuesday Blitz October 5 2021"]
[White "Reprintsev, Alexander"]
[Black "Tologon tegin, Semetei"]
[WhiteFideId "14100541"]
[BlackFideId "13800574"]
[WhiteElo "2126"]
[BlackElo "2224"]
[Result "1-0"]
[Round "06"]
[TimeControl "180+1"]
[Date "2021.10.05"]
[WhiteClock "0:00:30"]
[BlackClock "0:00:03"]

1. e4 {[%clk 0:02:08]}  c5 {[%clk 0:02:56]} 2. b3 {[%clk 0:02:08]}  g6 {[%clk 0:02:54]} 3. Bb2 {[%clk 0:02:06]}  Nf6 {[%clk 0:02:54]} 4. e5 {[%clk 0:02:06]}  Nd5 {[%clk 0:02:53]} 5. Nc3 {[%clk 0:02:07]}  Nxc3 {[%clk 0:02:52]} 6. dxc3 {[%clk 0:02:08]}  Bg7 {[%clk 0:02:52]} 7. Qd5 {[%clk 0:02:08]}  Qc7 {[%clk 0:02:47]} 8. Nf3 {[%clk 0:02:05]}  O-O {[%clk 0:02:45]} 9. O-O-O {[%clk 0:02:02]}  a5 {[%clk 0:02:32]} 10. a4 {[%clk 0:02:01]}  b6 {[%clk 0:02:26]} 11. c4 {[%clk 0:01:49]}  Bb7 {[%clk 0:02:24]} 12. Qd3 {[%clk 0:01:48]}  Rd8 {[%clk 0:02:15]} 13. h4 {[%clk 0:01:47]}  h5 {[%clk 0:02:05]} 14. Be2 {[%clk 0:01:45]}  Nc6 {[%clk 0:02:02]} 15. Qe3 {[%clk 0:01:38]}  Bc8 {[%clk 0:01:14]} 16. Qg5 {[%clk 0:01:30]}  d6 {[%clk 0:01:07]} 17. exd6 {[%clk 0:01:28]}  Rxd6 {[%clk 0:01:06]} 18. Bxg7 {[%clk 0:01:26]}  Kxg7 {[%clk 0:01:06]} 19. Bd3 {[%clk 0:01:17]}  Bg4 {[%clk 0:01:03]} 20. Rde1 {[%clk 0:01:16]}  Rad8 {[%clk 0:01:01]} 21. Ne5 {[%clk 0:01:12]}  Nb4 {[%clk 0:00:46]} 22. f3 {[%clk 0:01:03]}  Bc8 {[%clk 0:00:42]} 23. g4 {[%clk 0:01:02]}  Nxd3+ {[%clk 0:00:35]} 24. Nxd3 {[%clk 0:01:02]}  f6 {[%clk 0:00:20]} 25. Qe3 {[%clk 0:01:02]}  Re6 {[%clk 0:00:19]} 26. Qf2 {[%clk 0:00:57]}  Rxe1+ {[%clk 0:00:19]} 27. Rxe1 {[%clk 0:00:56]}  hxg4 {[%clk 0:00:19]} 28. h5 {[%clk 0:00:56]}  e5 {[%clk 0:00:17]} 29. hxg6 {[%clk 0:00:53]}  Rh8 {[%clk 0:00:16]} 30. fxg4 {[%clk 0:00:51]}  Bxg4 {[%clk 0:00:15]} 31. Qg2 {[%clk 0:00:46]}  Bf5 {[%clk 0:00:15]} 32. Rg1 {[%clk 0:00:40]}  Bxd3 {[%clk 0:00:13]} 33. cxd3 {[%clk 0:00:40]}  Qd7 {[%clk 0:00:13]} 34. Qe4 {[%clk 0:00:39]}  Rh3 {[%clk 0:00:13]} 35. Kc2 {[%clk 0:00:37]}  Rh2+ {[%clk 0:00:13]} 36. Kb1 {[%clk 0:00:37]}  Rd2 {[%clk 0:00:08]} 37. Rg3 {[%clk 0:00:36]}  Rd1+ {[%clk 0:00:08]} 38. Kc2 {[%clk 0:00:35]}  Rf1 {[%clk 0:00:05]} 39. Qh4 {[%clk 0:00:32]}  Rf2+ {[%clk 0:00:03]} 40. Kc1 {[%clk 0:00:31]}  Kg8 {[%clk 0:00:03]} 41. g7 {[%clk 0:00:30]} 1-0


[Site "https://www.chess.com"]

[Event "Titled Tuesday Blitz October 5 2021"]
[White "Rosenberg, Evan S"]
[Black "Petesch, Gabriel"]
[WhiteFideId "2019299"]
[BlackFideId "2032465"]
[WhiteElo "2262"]
[BlackElo "2374"]
[Result "1-0"]
[Round "06"]
[TimeControl "180+1"]
[Date "2021.10.05"]
[WhiteClock "0:00:21"]
[BlackClock "0:00:03"]

1. Nf3 {[%clk 0:03:00]}  Nf6 {[%clk 0:02:51]} 2. c4 {[%clk 0:03:00]}  c6 {[%clk 0:02:44]} 3. d4 {[%clk 0:03:00]}  d5 {[%clk 0:02:40]} 4. Nc3 {[%clk 0:03:00]}  g6 {[%clk 0:02:39]} 5. Bg5 {[%clk 0:03:00]}  Bg7 {[%clk 0:02:39]} 6. e3 {[%clk 0:03:00]}  Ne4 {[%clk 0:02:25]} 7. Nxe4 {[%clk 0:02:57]}  dxe4 {[%clk 0:02:26]} 8. Nd2 {[%clk 0:02:57]}  Qa5 {[%clk 0:02:15]} 9. Bh4 {[%clk 0:02:49]}  e5 {[%clk 0:02:11]} 10. d5 {[%clk 0:02:44]}  O-O {[%clk 0:02:04]} 11. Be7 {[%clk 0:02:38]}  Re8 {[%clk 0:01:58]} 12. b4 {[%clk 0:02:37]}  Qa3 {[%clk 0:01:46]} 13. d6 {[%clk 0:01:57]}  Bf8 {[%clk 0:01:32]} 14. Bxf8 {[%clk 0:01:51]}  Kxf8 {[%clk 0:01:25]} 15. Qb3 {[%clk 0:01:51]}  Qxb3 {[%clk 0:01:21]} 16. axb3 {[%clk 0:01:51]}  f5 {[%clk 0:01:10]} 17. c5 {[%clk 0:01:51]}  Be6 {[%clk 0:01:01]} 18. Bc4 {[%clk 0:01:47]}  Kf7 {[%clk 0:01:01]} 19. Bxe6+ {[%clk 0:01:45]}  Kxe6 {[%clk 0:01:02]} 20. Nc4 {[%clk 0:01:46]}  Nd7 {[%clk 0:01:01]} 21. Ke2 {[%clk 0:01:45]}  b6 {[%clk 0:00:58]} 22. Ra6 {[%clk 0:01:11]}  bxc5 {[%clk 0:00:56]} 23. bxc5 {[%clk 0:01:01]}  Nxc5 {[%clk 0:00:39]} 24. Rxc6 {[%clk 0:01:01]}  Nxb3 {[%clk 0:00:29]} 25. Rb1 {[%clk 0:00:43]}  Rec8 {[%clk 0:00:14]} 26. Rc7 {[%clk 0:00:34]}  Rab8 {[%clk 0:00:06]} 27. Rxb3 {[%clk 0:00:27]}  Rxb3 {[%clk 0:00:07]} 28. Rxc8 {[%clk 0:00:27]}  Rc3 {[%clk 0:00:06]} 29. d7 {[%clk 0:00:20]}  Kxd7 {[%clk 0:00:03]} 30. Nb6+ {[%clk 0:00:21]} 1-0


[Site "https://www.chess.com"]

[Event "Titled Tuesday Blitz October 5 2021"]
[White "Rustemov, Alexander"]
[Black "Gontcharov, Vladislav"]
[WhiteFideId "4119002"]
[BlackFideId "4123492"]
[WhiteElo "2796"]
[BlackElo "2503"]
[Result "1-0"]
[Round "06"]
[TimeControl "180+1"]
[Date "2021.10.05"]
[WhiteClock "0:00:25"]
[BlackClock "0:00:02"]

1. d4 {[%clk 0:03:00]}  Nf6 {[%clk 0:02:59]} 2. c4 {[%clk 0:03:00]}  e6 {[%clk 0:02:59]} 3. Nf3 {[%clk 0:03:00]}  d5 {[%clk 0:02:59]} 4. Nc3 {[%clk 0:03:00]}  Nbd7 {[%clk 0:02:57]} 5. cxd5 {[%clk 0:02:59]}  exd5 {[%clk 0:02:56]} 6. Bg5 {[%clk 0:03:00]}  c6 {[%clk 0:02:52]} 7. e3 {[%clk 0:02:59]}  Bb4 {[%clk 0:02:50]} 8. Bd3 {[%clk 0:02:51]}  Qa5 {[%clk 0:02:46]} 9. Qc2 {[%clk 0:02:49]}  h6 {[%clk 0:02:41]} 10. Bh4 {[%clk 0:02:46]}  O-O {[%clk 0:02:29]} 11. O-O {[%clk 0:02:45]}  Re8 {[%clk 0:02:22]} 12. Rfc1 {[%clk 0:02:41]}  g5 {[%clk 0:01:45]} 13. Bg3 {[%clk 0:02:39]}  Nh5 {[%clk 0:01:45]} 14. Ne2 {[%clk 0:02:27]}  Nxg3 {[%clk 0:01:25]} 15. Nxg3 {[%clk 0:02:25]}  Bf8 {[%clk 0:01:25]} 16. Bf5 {[%clk 0:02:12]}  Bg7 {[%clk 0:01:19]} 17. a3 {[%clk 0:02:07]}  a6 {[%clk 0:01:16]} 18. b4 {[%clk 0:02:06]}  Qb6 {[%clk 0:01:16]} 19. Rab1 {[%clk 0:02:05]}  Nf8 {[%clk 0:01:14]} 20. Bxc8 {[%clk 0:02:03]}  Raxc8 {[%clk 0:01:15]} 21. Nf5 {[%clk 0:02:02]}  Qd8 {[%clk 0:01:00]} 22. h3 {[%clk 0:01:58]}  Ng6 {[%clk 0:00:55]} 23. a4 {[%clk 0:01:55]}  Qd7 {[%clk 0:00:49]} 24. g4 {[%clk 0:01:42]}  Re4 {[%clk 0:00:45]} 25. Nd2 {[%clk 0:01:40]}  Ree8 {[%clk 0:00:33]} 26. Nf1 {[%clk 0:01:40]}  Ne7 {[%clk 0:00:27]} 27. N1g3 {[%clk 0:01:40]}  Nxf5 {[%clk 0:00:27]} 28. Nxf5 {[%clk 0:01:40]}  Bf8 {[%clk 0:00:28]} 29. Kg2 {[%clk 0:01:37]}  Qe6 {[%clk 0:00:27]} 30. Qe2 {[%clk 0:01:26]}  f6 {[%clk 0:00:25]} 31. Qf3 {[%clk 0:01:26]}  Kf7 {[%clk 0:00:19]} 32. h4 {[%clk 0:01:25]}  gxh4 {[%clk 0:00:18]} 33. Rh1 {[%clk 0:01:24]}  Qe4 {[%clk 0:00:18]} 34. Qxe4 {[%clk 0:01:20]}  Rxe4 {[%clk 0:00:18]} 35. Rxh4 {[%clk 0:01:09]}  b6 {[%clk 0:00:18]} 36. Kf3 {[%clk 0:01:06]}  Kg6 {[%clk 0:00:15]} 37. Rbh1 {[%clk 0:01:04]}  c5 {[%clk 0:00:15]} 38. bxc5 {[%clk 0:01:03]}  bxc5 {[%clk 0:00:15]} 39. dxc5 {[%clk 0:01:02]}  Rxc5 {[%clk 0:00:14]} 40. Nxh6 {[%clk 0:01:02]}  Rxa4 {[%clk 0:00:14]} 41. Nf5 {[%clk 0:01:00]}  Ra2 {[%clk 0:00:13]} 42. Rh8 {[%clk 0:00:59]}  Rcc2 {[%clk 0:00:13]} 43. Rxf8 {[%clk 0:00:54]}  Rxf2+ {[%clk 0:00:13]} 44. Kg3 {[%clk 0:00:55]}  Rg2+ {[%clk 0:00:13]} 45. Kh3 {[%clk 0:00:53]}  a5 {[%clk 0:00:11]} 46. Nh4+ {[%clk 0:00:50]}  Kg7 {[%clk 0:00:12]} 47. Nxg2 {[%clk 0:00:49]}  Kxf8 {[%clk 0:00:12]} 48. Rd1 {[%clk 0:00:48]}  a4 {[%clk 0:00:10]} 49. Rxd5 {[%clk 0:00:48]}  a3 {[%clk 0:00:11]} 50. Ra5 {[%clk 0:00:47]}  Ra1 {[%clk 0:00:11]} 51. Nf4 {[%clk 0:00:42]}  a2 {[%clk 0:00:10]} 52. Kg2 {[%clk 0:00:42]}  Kf7 {[%clk 0:00:09]} 53. Ra7+ {[%clk 0:00:41]}  Kf8 {[%clk 0:00:09]} 54. Ne2 {[%clk 0:00:41]}  Kg8 {[%clk 0:00:06]} 55. Nc3 {[%clk 0:00:40]}  Re1 {[%clk 0:00:06]} 56. Rxa2 {[%clk 0:00:34]}  Rxe3 {[%clk 0:00:07]} 57. Nd5 {[%clk 0:00:30]}  Re6 {[%clk 0:00:07]} 58. Kf3 {[%clk 0:00:29]}  Rd6 {[%clk 0:00:05]} 59. Ra8+ {[%clk 0:00:28]}  Kf7 {[%clk 0:00:03]} 60. Ne3 {[%clk 0:00:28]}  Rb6 {[%clk 0:00:02]} 61. Ra7+ {[%clk 0:00:25]} 1-0


[Site "https://www.chess.com"]

[Event "Titled Tuesday Blitz October 5 2021"]
[White "Rytenko, Vsevolod"]
[Black "Bazarov, Konstantin"]
[WhiteFideId "14133040"]
[BlackFideId "4137000"]
[WhiteElo "2200"]
[BlackElo "2084"]
[Result "0-1"]
[Round "06"]
[TimeControl "180+1"]
[Date "2021.10.05"]
[WhiteClock "0:00:10"]
[BlackClock "0:00:09"]

1. d4 {[%clk 0:03:00]}  Nf6 {[%clk 0:02:59]} 2. c4 {[%clk 0:03:00]}  d6 {[%clk 0:03:00]} 3. Nc3 {[%clk 0:03:00]}  c6 {[%clk 0:03:00]} 4. e4 {[%clk 0:03:00]}  Nbd7 {[%clk 0:03:01]} 5. f3 {[%clk 0:02:59]}  e5 {[%clk 0:03:02]} 6. Nge2 {[%clk 0:02:58]}  Be7 {[%clk 0:03:01]} 7. Be3 {[%clk 0:02:58]}  a6 {[%clk 0:03:00]} 8. Qd2 {[%clk 0:02:58]}  b5 {[%clk 0:02:59]} 9. Ng3 {[%clk 0:02:54]}  g6 {[%clk 0:02:51]} 10. Be2 {[%clk 0:02:32]}  h5 {[%clk 0:02:47]} 11. Rd1 {[%clk 0:02:17]}  h4 {[%clk 0:02:43]} 12. Nf1 {[%clk 0:02:17]}  Qa5 {[%clk 0:02:35]} 13. a3 {[%clk 0:02:13]}  b4 {[%clk 0:02:18]} 14. Nb1 {[%clk 0:02:00]}  Rb8 {[%clk 0:02:09]} 15. Kf2 {[%clk 0:01:30]}  Qa4 {[%clk 0:02:01]} 16. Bg5 {[%clk 0:01:24]}  Qb3 {[%clk 0:01:50]} 17. Ne3 {[%clk 0:01:16]}  Nxe4+ {[%clk 0:01:41]} 18. fxe4 {[%clk 0:01:13]}  Bxg5 {[%clk 0:01:41]} 19. Bg4 {[%clk 0:01:03]}  Nf6 {[%clk 0:01:35]} 20. Bf3 {[%clk 0:01:02]}  Bd7 {[%clk 0:01:19]} 21. Rhe1 {[%clk 0:00:53]}  bxa3 {[%clk 0:01:14]} 22. bxa3 {[%clk 0:00:51]}  Qb2 {[%clk 0:00:58]} 23. dxe5 {[%clk 0:00:38]}  dxe5 {[%clk 0:00:55]} 24. Nc3 {[%clk 0:00:23]}  Qxd2+ {[%clk 0:00:47]} 25. Rxd2 {[%clk 0:00:24]}  Ke7 {[%clk 0:00:45]} 26. Na4 {[%clk 0:00:24]}  Rhd8 {[%clk 0:00:34]} 27. Nc5 {[%clk 0:00:23]}  Be6 {[%clk 0:00:31]} 28. Red1 {[%clk 0:00:22]}  Rxd2+ {[%clk 0:00:29]} 29. Rxd2 {[%clk 0:00:23]}  a5 {[%clk 0:00:29]} 30. Nxe6 {[%clk 0:00:15]}  Kxe6 {[%clk 0:00:28]} 31. Rd3 {[%clk 0:00:16]}  Rb2+ {[%clk 0:00:26]} 32. Kf1 {[%clk 0:00:15]}  a4 {[%clk 0:00:24]} 33. c5 {[%clk 0:00:15]}  Bf4 {[%clk 0:00:20]} 34. Bd1 {[%clk 0:00:11]}  Bxh2 {[%clk 0:00:17]} 35. Bxa4 {[%clk 0:00:08]}  Nxe4 {[%clk 0:00:17]} 36. Bxc6 {[%clk 0:00:06]}  Nxc5 {[%clk 0:00:16]} 37. Rc3 {[%clk 0:00:04]}  Nd7 {[%clk 0:00:14]} 38. a4 {[%clk 0:00:03]}  f5 {[%clk 0:00:12]} 39. a5 {[%clk 0:00:03]}  f4 {[%clk 0:00:11]} 40. Nd5 {[%clk 0:00:02]}  Nf6 {[%clk 0:00:07]} 41. Nb6 {[%clk 0:00:02]}  Rb1+ {[%clk 0:00:05]} 42. Ke2 {[%clk 0:00:01]}  Ra1 {[%clk 0:00:06]} 43. Kd3 {[%clk 0:00:02]}  Kd6 {[%clk 0:00:05]} 44. Nc4+ {[%clk 0:00:02]}  Kxc6 {[%clk 0:00:05]} 45. Nxe5+ {[%clk 0:00:03]}  Kd5 {[%clk 0:00:05]} 46. Nf3 {[%clk 0:00:03]}  Bg3 {[%clk 0:00:05]} 47. Kc2 {[%clk 0:00:02]}  Ne4 {[%clk 0:00:05]} 48. Re3 {[%clk 0:00:03]}  Nc5 {[%clk 0:00:04]} 49. Rc3 {[%clk 0:00:04]}  Ra2+ {[%clk 0:00:04]} 50. Kb1 {[%clk 0:00:04]}  Rxa5 {[%clk 0:00:04]} 51. Rc2 {[%clk 0:00:05]}  Rb5+ {[%clk 0:00:04]} 52. Kc1 {[%clk 0:00:05]}  Rb4 {[%clk 0:00:05]} 53. Rd2+ {[%clk 0:00:04]}  Kc4 {[%clk 0:00:04]} 54. Rc2+ {[%clk 0:00:04]}  Kb5 {[%clk 0:00:04]} 55. Rd2 {[%clk 0:00:05]}  Rc4+ {[%clk 0:00:04]} 56. Kb1 {[%clk 0:00:05]}  Ra4 {[%clk 0:00:04]} 57. Kc1 {[%clk 0:00:05]}  Kc4 {[%clk 0:00:04]} 58. Rc2+ {[%clk 0:00:05]}  Kb4 {[%clk 0:00:05]} 59. Rb2+ {[%clk 0:00:05]}  Nb3+ {[%clk 0:00:06]} 60. Kc2 {[%clk 0:00:05]}  Ra1 {[%clk 0:00:06]} 61. Rxb3+ {[%clk 0:00:05]}  Kc4 {[%clk 0:00:06]} 62. Rc3+ {[%clk 0:00:06]}  Kd5 {[%clk 0:00:06]} 63. Kd2 {[%clk 0:00:06]}  Ra2+ {[%clk 0:00:06]} 64. Rc2 {[%clk 0:00:07]}  Rxc2+ {[%clk 0:00:06]} 65. Kxc2 {[%clk 0:00:08]}  Ke4 {[%clk 0:00:06]} 66. Ng5+ {[%clk 0:00:07]}  Ke3 {[%clk 0:00:05]} 67. Kd1 {[%clk 0:00:07]}  Kf2 {[%clk 0:00:06]} 68. Kd2 {[%clk 0:00:08]}  Kxg2 {[%clk 0:00:06]} 69. Ke2 {[%clk 0:00:08]}  h3 {[%clk 0:00:07]} 70. Nxh3 {[%clk 0:00:08]}  Kxh3 {[%clk 0:00:07]} 71. Kf3 {[%clk 0:00:09]}  g5 {[%clk 0:00:07]} 72. Ke2 {[%clk 0:00:10]}  g4 {[%clk 0:00:07]} 73. Kf1 {[%clk 0:00:11]}  Kh2 {[%clk 0:00:07]} 74. Ke2 {[%clk 0:00:11]}  Kg2 {[%clk 0:00:07]} 75. Kd3 {[%clk 0:00:10]}  f3 {[%clk 0:00:08]} 76. Ke4 {[%clk 0:00:10]}  f2 {[%clk 0:00:09]} 0-1


[Site "https://www.chess.com"]